fUST/lending_fUST_20250207
["ID","MTS","AMOUNT","RATE_DAILY","PERIOD"]
[352055038,1738912250811,-558.609662,0.00013699,2]
[352055039,1738912250827,-558.609662,0.00013699,2]
[352055040,1738912250841,-558.609662,0.00013699,2]
[352055041,1738912250855,-558.609662,0.00013699,2]
[352055042,1738912250871,-558.609662,0.00013699,2]
[352055043,1738912250884,-558.609662,0.00013699,2]
[352055044,1738912250895,-558.609662,0.00013699,2]
[352055045,1738912250908,-558.609662,0.00013699,2]
[352055046,1738912250923,-558.609662,0.00013699,2]
[352055047,1738912250938,-558.609662,0.00013699,2]
[352055048,1738912250954,-521.62827337,0.00013699,2]
[352055049,1738912250970,-500.0,0.00013699,2]
[352055050,1738912250983,-500.0,0.00013699,2]
[352055051,1738912250994,-500.0,0.00013699,2]
[352055052,1738912251007,-500.0,0.00013699,2]
[352055053,1738912251024,-500.0,0.00013699,2]
[352055054,1738912251038,-500.0,0.00013699,2]
[352055055,1738912251050,-500.0,0.00013699,2]
[352055056,1738912251064,-500.0,0.00013699,2]
[352055057,1738912251076,-535.01057657,0.00013699,2]
[352055058,1738912251088,-500.0,0.00013699,2]
[352055059,1738912251102,-500.0,0.00013699,2]
[352055060,1738912251115,-566.2649803,0.00013699,2]
[352055061,1738912251127,-500.0,0.00013699,2]
[352055062,1738912251141,-500.0,0.00013699,2]
[352055063,1738912251154,-500.0,0.00013699,2]
[352055064,1738912251167,-500.0,0.00013699,2]
[352055065,1738912251181,-500.0,0.00013699,2]
[352055066,1738912251193,-500.0,0.00013699,2]
[352055067,1738912251206,-500.0,0.00013699,2]
[352055068,1738912251219,-500.0,0.00013699,2]
[352055069,1738912251232,-500.0,0.00013699,2]
[352055070,1738912251244,-500.0,0.00013699,2]
[352055071,1738912251257,-500.0,0.00013699,2]
[352055072,1738912251270,-500.0,0.00013699,2]
[352055073,1738912251282,-1577.04195786,0.00013735,2]
[352055074,1738912251295,-501.84304651,0.00013821,2]
[352055075,1738912251307,-203.461442,0.00013835,2]
[352055076,1738912251320,-500.0,0.00013835,2]
[352055077,1738912251332,-567.02678144,0.00013835,2]
[352055078,1738912251345,-500.0,0.00013835,2]
[352055079,1738912251357,-500.0,0.00013835,2]
[352055080,1738912251369,-530.10802178,0.00013835,2]
[352055081,1738912251383,-512.1755892,0.00013835,2]
[352055082,1738912251395,-502.84192554,0.00013835,2]
[352055083,1738912251408,-502.2724614,0.00013835,2]
[352055084,1738912251420,-500.0,0.00013835,2]
[352055085,1738912251433,-500.0,0.00013835,2]
[352055086,1738912251446,-500.0,0.00013835,2]
[352055087,1738912251458,-504.15901071,0.00013835,2]
[352055088,1738912251471,-510.96599223,0.00013835,2]
[352055089,1738912251483,-626.47691191,0.00013835,2]
[352055090,1738912251496,-500.0,0.00013835,2]
[352055091,1738912251509,-556.03,0.00013835,2]
[352055092,1738912251522,-437.95877082,0.00013835,2]
[352055093,1738912251534,-500.0,0.00013835,2]
[352055094,1738912251548,-500.0,0.00013835,2]
[352055095,1738912251560,-424.6675532,0.00013835,2]
[352055096,1738912251573,-504.10814525,0.00013835,2]
[352055097,1738912251586,-504.28871981,0.00013835,2]
[352055098,1738912251598,-502.4606202,0.00013835,2]
[352055099,1738912251611,-503.69229465,0.00013835,2]
[352055100,1738912251624,-501.81065237,0.00013835,2]
[352055101,1738912251637,-501.96749212,0.00013835,2]
[352055102,1738912251650,-444.41276479,0.00013835,2]
[352055103,1738912251663,-504.69941932,0.00013835,2]
[352055104,1738912251675,-636.53750785,0.00013835,2]
[352055105,1738912251688,-500.0,0.00013835,2]
[352055106,1738912251700,-500.0,0.00013835,2]
[352055107,1738912251710,-500.0,0.00013835,2]
[352055108,1738912251719,-523.82,0.00013835,2]
[352055109,1738912251860,-493.08601292,0.00013835,2]
[352055110,1738912251879,-564.41,0.00013835,2]
[352055111,1738912251889,-500.0,0.00013835,2]
[352055112,1738912251898,-500.0,0.00013835,2]
[352055113,1738912251908,-500.0,0.00013835,2]
[352055114,1738912251918,-508.07147072,0.00013835,2]
[352055115,1738912251928,-500.0,0.00013835,2]
[352055116,1738912251937,-500.0,0.00013835,2]
[352055117,1738912251947,-500.0,0.00013835,2]
[352055118,1738912251957,-500.0,0.00013835,2]
[352055119,1738912251966,-500.0,0.00013835,2]
[352055120,1738912251976,-500.0,0.00013835,2]
[352055121,1738912251986,-500.0,0.00013835,2]
[352055122,1738912251995,-500.0,0.00013835,2]
[352055123,1738912252005,-258.66245147,0.00013835,2]
[352055124,1738912252014,-500.0,0.00013835,2]
[352055125,1738912252024,-500.0,0.00013835,2]
[352055126,1738912252033,-163.72,0.00013835,2]
[352055127,1738912252047,-501.83620821,0.00013835,2]
[352055128,1738912252056,-502.54715942,0.00013835,2]
[352055129,1738912252066,-502.63099156,0.00013835,2]
[352055130,1738912252076,-502.17784361,0.00013835,2]
[352055131,1738912252085,-500.0,0.00013835,2]
[352055132,1738912252095,-500.0,0.00013835,2]
[352055133,1738912252105,-500.0,0.00013835,2]
[352055134,1738912252114,-502.18840362,0.00013835,2]
[352055135,1738912252123,-500.0,0.00013835,2]
[352055136,1738912252133,-500.0,0.00013835,2]
[352055137,1738912252143,-502.70800235,0.00013835,2]
[352055138,1738912252152,-501.05141148,0.00013835,2]
[352055139,1738912252162,-502.43436867,0.00013835,2]
[352055140,1738912252171,-500.0,0.00013835,2]
[352055141,1738912252181,-502.69331885,0.00013835,2]
[352055142,1738912252190,-563.63,0.00013835,2]
[352055143,1738912252200,-703.83,0.00013835,2]
[352055144,1738912252209,-502.97578335,0.00013835,2]
[352055145,1738912252219,-210.83600293,0.00013835,2]
[352055146,1738912252228,-503.03706985,0.00013835,2]
[352055147,1738912252237,-971.08,0.00013835,2]
[352055148,1738912252248,-500.0,0.00013835,2]
[352055149,1738912252257,-500.0,0.00013835,2]
[352055150,1738912252267,-592.62,0.00013835,2]
[352055151,1738912252277,-500.0,0.00013835,2]
[352055152,1738912252287,-3369.73,0.00013835,2]
[352055153,1738912252299,-549.4,0.00013835,2]
[352055154,1738912252309,-633.61,0.00013835,2]
[352055155,1738912252319,-554.41,0.00013835,2]
[352055156,1738912252329,-500.0,0.00013835,2]
[352055157,1738912252339,-610.89,0.00013835,2]
[352055158,1738912252349,-500.0,0.00013835,2]
[352055159,1738912252359,-184.17,0.00013835,2]
[352055160,1738912252369,-500.0,0.00013835,2]
[352055161,1738912252379,-500.0,0.00013835,2]
[352055162,1738912252388,-500.0,0.00013835,2]
[352055163,1738912252398,-500.0,0.00013835,2]
[352055164,1738912252408,-502.21945734,0.00013835,2]
[352055165,1738912252418,-3217.19,0.00013835,2]
[352055166,1738912252427,-500.0,0.00013835,2]
[352055167,1738912252436,-538.11,0.00013835,2]
[352055168,1738912252446,-500.0,0.00013835,2]
[352055169,1738912252455,-502.49519047,0.00013835,2]
[352055170,1738912252464,-500.0,0.00013835,2]
[352055171,1738912252474,-500.0,0.00013835,2]
[352055172,1738912252484,-500.0,0.00013835,2]
[352055173,1738912252494,-500.0,0.00013835,2]
[352055174,1738912252504,-500.0,0.00013835,2]
[352055175,1738912252514,-500.0,0.00013835,2]
[352055176,1738912252524,-277.2,0.00013835,2]
[352055177,1738912252533,-500.0,0.00013835,2]
[352055178,1738912252544,-500.0,0.00013835,2]
[352055179,1738912252554,-500.0,0.00013835,2]
[352055180,1738912252564,-500.0,0.00013835,2]
[352055181,1738912252574,-500.0,0.00013835,2]
[352055182,1738912252583,-500.0,0.00013835,2]
[352055183,1738912252593,-500.0,0.00013835,2]
[352055184,1738912252602,-500.0,0.00013835,2]
[352055185,1738912252612,-500.0,0.00013835,2]
[352055186,1738912252622,-500.0,0.00013835,2]
[352055187,1738912252631,-500.0,0.00013835,2]
[352055188,1738912252641,-500.0,0.00013835,2]
[352055189,1738912252651,-500.0,0.00013835,2]
[352055190,1738912252660,-500.0,0.00013835,2]
[352055191,1738912252670,-500.0,0.00013835,2]
[352055192,1738912252680,-504.04404954,0.00013835,2]
[352055193,1738912252690,-500.0,0.00013835,2]
[352055194,1738912252700,-558.77,0.00013835,2]
[352055195,1738912252710,-500.0,0.00013835,2]
[352055196,1738912252720,-500.0,0.00013835,2]
[352055197,1738912252730,-500.0,0.00013835,2]
[352055198,1738912252740,-1055.23,0.00013835,2]
[352055199,1738912252750,-504.20903814,0.00013835,2]
[352055200,1738912252763,-2400.72,0.00013835,2]
[352055201,1738912252772,-500.0,0.00013835,2]
[352055202,1738912252783,-500.0,0.00013835,2]
[352055203,1738912252796,-500.0,0.00013835,2]
[352055204,1738912252807,-645.58259757,0.00013835,2]
[352055205,1738912252817,-501.00492072,0.00013835,2]
[352055206,1738912252827,-504.38943593,0.00013835,2]
[352055207,1738912252840,-500.0,0.00013835,2]
[352055208,1738912252850,-500.0,0.00013835,2]
[352055209,1738912252860,-643.85573182,0.00013835,2]
[352055210,1738912252869,-170.66966448,0.00013835,2]
[352055211,1738912252879,-500.0,0.00013835,2]
[352055212,1738912252888,-500.0,0.00013835,2]
[352055213,1738912252898,-500.0,0.00013835,2]
[352055214,1738912252907,-500.0,0.00013835,2]
[352055215,1738912252917,-500.0,0.00013835,2]
[352055216,1738912252927,-500.0,0.00013835,2]
[352055217,1738912252936,-358.39100061,0.00013835,2]
[352055218,1738912252946,-500.0,0.00013835,2]
[352055219,1738912252956,-500.0,0.00013835,2]
[352055220,1738912252966,-500.0,0.00013835,2]
[352055221,1738912252977,-500.0,0.00013835,2]
[352055222,1738912252987,-500.0,0.00013835,2]
[352055223,1738912252998,-500.0,0.00013835,2]
[352055224,1738912253008,-500.0,0.00013835,2]
[352055225,1738912253017,-500.0,0.00013835,2]
[352055226,1738912253027,-500.0,0.00013835,2]
[352055227,1738912253036,-500.0,0.00013835,2]
[352055228,1738912253048,-500.0,0.00013835,2]
[352055229,1738912253058,-504.20802069,0.00013835,2]
[352055230,1738912253067,-500.0,0.00013835,2]
[352055231,1738912253076,-229.51558749,0.00013835,2]
[352055232,1738912253085,-500.0,0.00013835,2]
[352055233,1738912253095,-500.0,0.00013835,2]
[352055234,1738912253105,-414.75,0.00013835,2]
[352055235,1738912253115,-500.0,0.00013835,2]
[352055236,1738912253124,-502.39802918,0.00013835,2]
[352055237,1738912253135,-500.0,0.00013835,2]
[352055238,1738912253145,-500.0,0.00013835,2]
[352055239,1738912253154,-500.0,0.00013835,2]
[352055240,1738912253164,-447.11388792,0.00013835,2]
[352055241,1738912253174,-500.0,0.00013835,2]
[352055242,1738912253184,-500.0,0.00013835,2]
[352055243,1738912253194,-500.0,0.00013835,2]
[352055244,1738912253204,-500.82521932,0.00013835,2]
[352055245,1738912253214,-507.06486094,0.00013835,2]
[352055246,1738912253223,-503.63500703,0.00013835,2]
[352055247,1738912253233,-500.0,0.00013835,2]
[352055248,1738912253243,-503.15495327,0.00013835,2]
[352055249,1738912253253,-778.95,0.00013835,2]
[352055250,1738912253263,-412.89175563,0.00013835,2]
[352055251,1738912253273,-500.0,0.00013835,2]
[352055252,1738912253284,-500.0,0.00013835,2]
[352055253,1738912253295,-500.0,0.00013835,2]
[352055254,1738912253304,-156.42,0.00013835,2]
[352055255,1738912253313,-500.0,0.00013835,2]
[352055256,1738912253323,-500.0,0.00013835,2]
[352055257,1738912253332,-500.0,0.00013835,2]
[352055258,1738912253342,-500.0,0.00013835,2]
[352055259,1738912253351,-500.0,0.00013835,2]
[352055260,1738912253361,-162.08577339,0.00013872,2]
[352055261,1738912253371,-162.08577339,0.00013872,2]
[352055262,1738912253381,-162.08577339,0.00013872,2]
[352055263,1738912253391,-162.08577339,0.00013872,2]
[352055264,1738912253400,-162.08577339,0.00013872,2]
[352055265,1738912253410,-162.08577339,0.00013872,2]
[352055266,1738912253420,-162.08577339,0.00013872,2]
[352055267,1738912253430,-162.08577339,0.00013872,2]
[352055268,1738912253441,-162.08577339,0.00013872,2]
[352055269,1738912253451,-162.08577339,0.00013872,2]
[352055270,1738912253461,-162.08577339,0.00013872,2]
[352055271,1738912253471,-162.08,0.00013872,2]
[352055272,1738912253482,-193.0,0.00013917,2]
[352055273,1738912253491,-639.7649294,0.0001393,2]
[352055274,1738912253501,-500.0,0.00013972,2]
[352055275,1738912253511,-500.0,0.00013972,2]
[352055276,1738912253520,-500.0,0.00013972,2]
[352055277,1738912253530,-500.0,0.00013972,2]
[352055278,1738912253541,-500.0,0.00013972,2]
[352055279,1738912253551,-500.0,0.00013972,2]
[352055280,1738912253560,-500.0,0.00013972,2]
[352055281,1738912253570,-520.01641733,0.00013972,2]
[352055282,1738912253580,-316.20214082,0.00013972,2]
[352055283,1738912253589,-500.0,0.00013972,2]
[352055284,1738912253599,-500.0,0.00013972,2]
[352055285,1738912253609,-503.67093681,0.00013972,2]
[352055286,1738912253619,-500.0,0.00013972,2]
[352055287,1738912253628,-500.0,0.00013972,2]
[352055288,1738912253637,-233.29306773,0.00013972,2]
[352055289,1738912253646,-500.0,0.00013972,2]
[352055290,1738912253655,-360.2035165,0.00013972,2]
[352055291,1738912253665,-506.15126715,0.00013972,2]
[352055292,1738912253676,-500.0,0.00013972,2]
[352055293,1738912253686,-500.0,0.00013972,2]
[352055294,1738912253696,-500.0,0.00013972,2]
[352055295,1738912253705,-500.0,0.00013972,2]
[352055296,1738912253715,-703.83,0.00013972,2]
[352055297,1738912253724,-971.08,0.00013972,2]
[352055298,1738912253734,-3369.73,0.00013972,2]
[352055299,1738912253743,-633.61,0.00013972,2]
[352055300,1738912253752,-500.0,0.00013972,2]
[352055301,1738912253768,-500.0,0.00013972,2]
[352055302,1738912253778,-394.81,0.00013972,2]
[352055303,1738912253788,-3217.19,0.00013972,2]
[352055304,1738912253798,-500.0,0.00013972,2]
[352055305,1738912253808,-538.11,0.00013972,2]
[352055306,1738912253820,-500.0,0.00013972,2]
[352055307,1738912253830,-151.36604435,0.00013972,2]
[352055308,1738912254266,-151.0,0.00013294,2]
[352055309,1738912254275,-2342.71131921,0.00013316,2]
[352055310,1738912254284,-23.18868081,0.00013698,2]
[352055311,1738912254298,-476.81131919,0.00013698,2]
[352055312,1738912254307,-246.11856944,0.00013835,2]
[352055313,1738912254323,-253.88143056,0.00013835,2]
[352055314,1738912254332,-348.63395565,0.00013972,2]
[352055315,1738912254342,-503.41753584,0.00013972,2]
[352055316,1738912254352,-500.0,0.00013972,2]
[352055317,1738912254362,-500.0,0.00013972,2]
[352055318,1738912254371,-105.65581248,0.00013972,2]
[352055319,1738912254627,-151.0,0.00013294,2]
[352055320,1738912254636,-151.810419,0.00013294,2]
[352055321,1738912254647,-394.34418752,0.00013972,2]
[352055322,1738912254656,-178.69317734,0.00013972,2]
[352055323,1738912254671,-321.30682266,0.00013972,2]
[352055324,1738912254681,-500.0,0.00013972,2]
[352055325,1738912254690,-500.0,0.00013972,2]
[352055326,1738912254700,-500.0,0.00013972,2]
[352055327,1738912254710,-505.31,0.00013972,2]
[352055328,1738912254720,-500.0,0.00013972,2]
[352055329,1738912254729,-365.9,0.00013972,2]
[352055330,1738912254740,-192.0,0.00013972,2]
[352055331,1738912254749,-500.0,0.00013972,2]
[352055332,1738912254762,-500.0,0.00013972,2]
[352055333,1738912254771,-220.89,0.00013972,2]
[352055334,1738912254781,-500.0,0.00013972,2]
[352055335,1738912254791,-500.0,0.00013972,2]
[352055336,1738912254801,-500.0,0.00013972,2]
[352055337,1738912254811,-558.77,0.00013972,2]
[352055338,1738912254821,-171.33,0.00013972,2]
[352055339,1738912254831,-609.9,0.00013972,2]
[352055340,1738912254842,-500.0,0.00013972,2]
[352055341,1738912254852,-1055.23,0.00013972,2]
[352055342,1738912254862,-848.52300416,0.00013972,2]
[352055343,1738912255079,-108.73059088,0.00013294,2]
[352055344,1738912381642,1000.0,0.00019,120]
[352055350,1738913239151,-448.46367761,0.00012148,2]
[352055351,1738913239175,-255.12883376,0.00012271,2]
[352055352,1738913308280,250.0,0.00011857,2]
[352055359,1738913312945,238.52639391,0.0001,7]
[352055363,1738913355399,-4194.40362283,0.00012148,2]
[352055366,1738913367099,-535.1127625,0.00012396,2]
[352055367,1738913367121,-300.0,0.00012459,2]
[352055368,1738913367142,-24900.0,0.0001246,2]
[352055369,1738913367169,-435.89869077,0.000129,2]
[352055370,1738913367190,-161.26339454,0.00012968,2]
[352055371,1738913367211,-11749.28340278,0.00013,2]
[352055388,1738913432494,-300.0,0.00012999,2]
[352055389,1738913432504,-784.81050534,0.00013,2]
[352055390,1738913432517,-2600.0,0.00013,2]
[352055464,1738913440479,-27297.36216034,0.00013,2]
[352055465,1738913440492,-600.0,0.00013068,2]
[352055466,1738913440505,-7438.69753278,0.00013288,2]
[352055467,1738913440517,-501.07388534,0.00013294,2]
[352055468,1738913440530,-574.69605338,0.00013598,2]
[352055469,1738913440546,-500.0,0.00013673,2]
[352055470,1738913440556,-500.0,0.00013673,2]
[352055471,1738913440566,-500.79202333,0.00013673,2]
[352055472,1738913440577,-501.0401281,0.00013673,2]
[352055473,1738913440587,-534.36873461,0.00013673,2]
[352055474,1738913440598,-500.0,0.00013673,2]
[352055475,1738913440611,-500.0,0.00013673,2]
[352055476,1738913440624,-500.0,0.00013673,2]
[352055477,1738913440636,-500.24662846,0.00013673,2]
[352055478,1738913440647,-500.0,0.00013673,2]
[352055479,1738913440657,-159.95088827,0.00013673,2]
[352055480,1738913440668,-500.0,0.00013673,2]
[352055481,1738913440681,-500.42126022,0.00013673,2]
[352055482,1738913440692,-502.1408478,0.00013673,2]
[352055483,1738913440704,-161.78606031,0.00013673,2]
[352055484,1738913440716,-500.0,0.00013673,2]
[352055485,1738913440727,-153.06911268,0.00013673,2]
[352055486,1738913440738,-152.4906468,0.00013673,2]
[352055518,1738913446480,-381.41135438,0.00012968,2]
[352055519,1738913446493,-98.32554744,0.00013673,2]
[352055520,1738913446505,-500.0,0.00013673,2]
[352055521,1738913446517,-500.0,0.00013673,2]
[352055522,1738913446529,-284.82933745,0.00013673,2]
[352055523,1738913446543,-500.0,0.00013673,2]
[352055524,1738913446555,-152.62731754,0.00013673,2]
[352055525,1738913446567,-269.71724499,0.00013673,2]
[352055526,1738913446580,-267.10261197,0.00013673,2]
[352055527,1738913446594,-268.92021099,0.00013673,2]
[352055528,1738913446606,-329.91056156,0.00013693,2]
[352055529,1738913446619,-256.43,0.00013693,2]
[352055530,1738913446633,-500.0,0.00013693,2]
[352055531,1738913446645,-500.0,0.00013693,2]
[352055532,1738913446656,-500.0,0.00013693,2]
[352055533,1738913446668,-500.0,0.00013693,2]
[352055534,1738913446678,-500.0,0.00013693,2]
[352055535,1738913446689,-500.0,0.00013693,2]
[352055536,1738913446699,-500.0,0.00013693,2]
[352055537,1738913446710,-500.0,0.00013693,2]
[352055538,1738913446720,-177.01839919,0.00013693,2]
[352055539,1738913446730,-500.0,0.00013693,2]
[352055540,1738913446930,-178.10425681,0.00013693,2]
[352055541,1738913446954,-172.93275021,0.00013693,2]
[352055542,1738913446966,-500.0,0.00013693,2]
[352055543,1738913446977,-500.0,0.00013693,2]
[352055544,1738913446987,-153.83230406,0.00013693,2]
[352055545,1738913446997,-500.0,0.00013693,2]
[352055546,1738913447007,-500.0,0.00013693,2]
[352055547,1738913447017,-500.0,0.00013693,2]
[352055548,1738913447027,-500.0,0.00013693,2]
[352055549,1738913447038,-500.0,0.00013693,2]
[352055550,1738913447047,-500.0,0.00013693,2]
[352055551,1738913447056,-500.0,0.00013693,2]
[352055552,1738913447066,-415.83824841,0.00013693,2]
[352055556,1738914088102,165.69120931,0.00011967,5]
[352055559,1738914208125,165.69120931,0.00011968,5]
[352055560,1738914425149,-819.83657803,0.00012398,2]
[352055561,1738914425172,-300.0,0.00012649,2]
[352055562,1738914425195,-5778.76292233,0.0001265,2]
[352055563,1738914433089,-156.37678913,0.0001265,2]
[352055564,1738914447144,-769.8164435,0.0001265,2]
[352055565,1738914495252,349.5,0.00010959,2]
[352055566,1738914505742,291.25,0.00010959,2]
[352055567,1738914516162,242.7,0.00010959,2]
[352055568,1738914526661,202.25,0.00010959,2]
[352055569,1738914537141,168.55,0.00010959,2]
[352055570,1738914547898,488.47522561,0.00010959,2]
[352055571,1738914547931,354.27477439,0.00010959,2]
[352055572,1738914551157,-1802.70952778,0.00012523,2]
[352055573,1738914577739,841.4845554,0.00012491,2]
[352055611,1738914632500,-300.0,0.00012648,2]
[352055613,1738914632510,-186.45602853,0.00012649,2]
[352055615,1738914632520,-474.5791634,0.00012649,2]
[352055618,1738914632556,-25.4208366,0.00012649,2]
[352055619,1738914632567,-500.0,0.00012649,2]
[352055620,1738914632577,-496.44721207,0.00012649,2]
[352055621,1738914632620,-3.55278793,0.00012649,2]
[352055622,1738914632631,-500.0,0.00012649,2]
[352055623,1738914632641,-500.0,0.00012649,2]
[352055624,1738914632652,-500.0,0.00012649,2]
[352055625,1738914632662,-500.0,0.00012649,2]
[352055627,1738914632672,-500.0,0.00012649,2]
[352055629,1738914632682,-500.0,0.00012649,2]
[352055631,1738914632692,-500.0,0.00012649,2]
[352055645,1738914632867,-500.0,0.00012649,2]
[352055646,1738914632883,-500.0,0.00012649,2]
[352055647,1738914632899,-500.0,0.00012649,2]
[352055648,1738914632909,-500.0,0.00012649,2]
[352055649,1738914632919,-500.0,0.00012649,2]
[352055650,1738914632928,-500.0,0.00012649,2]
[352055651,1738914632938,-500.0,0.00012649,2]
[352055652,1738914632947,-500.0,0.00012649,2]
[352055653,1738914632957,-500.0,0.00012649,2]
[352055654,1738914632968,-500.0,0.00012649,2]
[352055655,1738914632978,-500.0,0.00012649,2]
[352055656,1738914632988,-578.52828034,0.00012649,2]
[352055657,1738914632998,-500.0,0.00012649,2]
[352055658,1738914633008,-500.0,0.00012649,2]
[352055659,1738914633018,-500.0,0.00012649,2]
[352055660,1738914633027,-500.0,0.00012649,2]
[352055661,1738914633038,-500.0,0.00012649,2]
[352055662,1738914633048,-500.0,0.00012649,2]
[352055663,1738914633058,-500.0,0.00012649,2]
[352055664,1738914633068,-500.0,0.00012649,2]
[352055665,1738914633078,-500.0,0.00012649,2]
[352055666,1738914633087,-500.0,0.00012649,2]
[352055667,1738914633097,-500.0,0.00012649,2]
[352055668,1738914633107,-500.0,0.00012649,2]
[352055669,1738914633116,-500.0,0.00012649,2]
[352055670,1738914633126,-469.8364756,0.00012649,2]
[352055671,1738914633136,-500.0,0.00012649,2]
[352055672,1738914633146,-500.0,0.00012649,2]
[352055673,1738914633156,-500.0,0.00012649,2]
[352055674,1738914633166,-500.0,0.00012649,2]
[352055675,1738914633175,-500.0,0.00012649,2]
[352055676,1738914633185,-500.0,0.00012649,2]
[352055677,1738914633195,-500.0,0.00012649,2]
[352055678,1738914633204,-500.0,0.00012649,2]
[352055679,1738914633214,-500.0,0.00012649,2]
[352055680,1738914633224,-500.0,0.00012649,2]
[352055681,1738914633234,-500.0,0.00012649,2]
[352055682,1738914633243,-163.31516395,0.00012649,2]
[352055683,1738914633252,-500.0,0.00012649,2]
[352055684,1738914633262,-243.80141271,0.00012649,2]
[352055685,1738914633271,-500.0,0.00012649,2]
[352055686,1738914633280,-500.0,0.00012649,2]
[352055687,1738914633294,-500.0,0.00012649,2]
[352055688,1738914633304,-500.0,0.00012649,2]
[352055689,1738914633314,-500.0,0.00012649,2]
[352055690,1738914633323,-500.0,0.00012649,2]
[352055691,1738914633333,-500.0,0.00012649,2]
[352055692,1738914633343,-500.0,0.00012649,2]
[352055693,1738914633352,-500.0,0.00012649,2]
[352055694,1738914633362,-500.0,0.00012649,2]
[352055695,1738914633371,-500.0,0.00012649,2]
[352055696,1738914633381,-500.0,0.00012649,2]
[352055697,1738914633393,-500.0,0.00012649,2]
[352055698,1738914633403,-500.0,0.00012649,2]
[352055699,1738914633412,-500.0,0.00012649,2]
[352055700,1738914633422,-500.0,0.00012649,2]
[352055701,1738914633432,-500.0,0.00012649,2]
[352055702,1738914633441,-568.79329113,0.00012649,2]
[352055703,1738914633451,-500.0,0.00012649,2]
[352055704,1738914633460,-500.0,0.00012649,2]
[352055705,1738914633470,-500.0,0.00012649,2]
[352055706,1738914633480,-300.0,0.00012649,2]
[352055707,1738914633489,-500.0,0.00012649,2]
[352055708,1738914633500,-500.0,0.00012649,2]
[352055709,1738914633510,-500.0,0.00012649,2]
[352055710,1738914633520,-500.0,0.00012649,2]
[352055711,1738914633530,-500.0,0.00012649,2]
[352055712,1738914633543,-500.0,0.00012649,2]
[352055713,1738914633552,-500.0,0.00012649,2]
[352055714,1738914633563,-500.0,0.00012649,2]
[352055715,1738914633572,-500.0,0.00012649,2]
[352055716,1738914633588,-500.0,0.00012649,2]
[352055717,1738914633603,-500.0,0.00012649,2]
[352055718,1738914633612,-500.0,0.00012649,2]
[352055719,1738914633622,-500.0,0.00012649,2]
[352055720,1738914633634,-500.0,0.00012649,2]
[352055721,1738914633645,-500.0,0.00012649,2]
[352055722,1738914633655,-500.0,0.00012649,2]
[352055723,1738914633665,-361.6586561,0.00012649,2]
[352055724,1738914633675,-500.0,0.00012649,2]
[352055725,1738914633687,-500.0,0.00012649,2]
[352055726,1738914633697,-500.0,0.00012649,2]
[352055727,1738914633709,-500.0,0.00012649,2]
[352055728,1738914633719,-18195.04384504,0.0001265,2]
[352055729,1738914633730,-99369.18831794,0.0001265,2]
[352055730,1738914633739,-13264.03974987,0.00013157,2]
[352055731,1738914633749,-454.31233883,0.00013498,2]
[352055732,1738914633760,-152.0,0.00013538,2]
[352055733,1738914633770,-1721.390409,0.00013593,2]
[352055734,1738914633779,-1721.39040898,0.00013594,2]
[352055735,1738914633791,-1721.39040898,0.00013596,2]